[Event "Romanian Rapid Open 2022"]
[Site "Sebes"]
[Date "2022.12.02"]
[Round "2.29"]
[White "Vasilca, Cornel"]
[Black "Teodorescu, Razvan"]
[Result "0-1"]
[ECO "B20"]
[WhiteElo "1520"]
[BlackElo "2118"]
[Annotator "TA"]
[PlyCount "54"]
[EventDate "2022.12.02"]
[EventType "rapid"]
[EventCountry "ROU"]
[SourceTitle "playchess.com"]
[Source "ChessBase"]
[SourceQuality "1"]
[TimeControl "600+5"]

{[%evp 9,54,-11,-14,-5,-10,-12,-11,-22,-1,-1,5,-47,-6,-74,-72,-82,-73,-112,-99,-115,-94,-158,-144,-166,-119,-168,-149,-438,-426,-390,-422,-658,-654,-648,-621,-844,-745,-1114,-1129,-1110,-1069,-1320,-1074,-29988,-29989,-29993,-29994]} 1. e4 {[%emt 0:00:03]} c5 {[%emt 0:00:01]} 2. Bc4 {[%emt 0:00:06]} Nc6 {[%emt 0:00:04]} 3. d3 {[%emt 0:00:05]} e6 {[%emt 0:00:10]} 4. a3 {[%emt 0:00:02]} Nge7 {[%emt 0:00:09]} 5. Nc3 {[%emt 0:00:14]} d5 {[%emt 0:00:13]} 6. exd5 {[%emt 0:00:15] B20: Sicilian: Unusual White 2nd moves.} exd5 {[%emt 0:00:04] [#]} 7. Bb3 $146 {[%emt 0:00:14]} ({Predecessor:} 7. Ba2 g6 8. h3 Bg7 9. Nf3 O-O 10. O-O h6 11. Bf4 Be6 12. Qd2 Kh7 13. Rab1 {1-0 (44) Mamantuc,I (1564)-Al Ali,A (1693) Sharjah 2022}) 7... Be6 {[%emt 0:00:33]} 8. Nf3 {[%emt 0:00:07] The position is equal.} Nf5 {[%emt 0:00:30]} 9. O-O {[%emt 0:00:35]} Be7 {[%emt 0:00:08]} 10. Bf4 {[%emt 0:00:12]} (10. Ne2 $1 $11) 10... O-O {[%emt 0:00:14]} (10... g5 $5 {[%cal Rg5f4]} 11. Be5 O-O $15) 11. Bg3 {[%emt 0:00:36]} (11. Ne2 $11) 11... Bf6 $17 {[%emt 0:00:07]} 12. Re1 {[%emt 0:00:17]} a6 {[%emt 0:00:33]} 13. Be5 {[%emt 0:00:28]} Nxe5 {[%emt 0:00:27]} 14. Nxe5 {[%emt 0:00:06]} Qd6 {[%emt 0:00:38]} 15. f4 {[%emt 0:00:52]} (15. Nf3 $142) 15... b5 {[%emt 0:00:16]} 16. Qd2 {[%emt 0:02:08]} Rad8 {[%emt 0:00:30]} ({Worse is} 16... c4 17. Ba2 $17) (16... g5 $19 17. g3 Bg7) 17. Rad1 {[%emt 0:00:16]} (17. Ne2 $17) 17... Rfe8 {[%emt 0:00:23]} 18. Ng4 $2 {[%emt 0:00:10][%mdl 8192] [#]} (18. Ba2 $17 {was necessary.}) 18... Bd4+ $19 {[%emt 0:00:35]} 19. Nf2 {[%emt 0:00:35]} c4 {[%emt 0:00:26]} 20. dxc4 {[%emt 0:00:08]} (20. Ba2 $142) 20... dxc4 {[%emt 0:00:05]} 21. Ba2 {[%emt 0:00:08]} Qb6 {[%emt 0:00:33]} 22. Nce4 {[%emt 0:01:05]} Bd5 {[%emt 0:00:50] Against c3. This pair of bishops is nice.} 23. c3 {[%emt 0:00:39]} Be3 {[%emt 0:00:34]} 24. Rxe3 {[%emt 0:00:31]} Nxe3 {[%emt 0:00:10]} 25. Re1 {[%emt 0:00:24]} Ng4 {[%emt 0:00:55]} 26. Bb1 {[%emt 0:01:24]} Bxe4 {[%emt 0:00:29]} 27. Rxe4 {[%emt 0:00:13]} Rxe4 {[%emt 0:00:12] White did not feel at home in the position after the opening.   Weighted Error Value: White=1.20/Black=0.30} ({Don't do} 27... Rxd2 28. Rxe8#) 0-1

[Event "Romanian Rapid Open 2022"]
[Site "Sebes"]
[Date "2022.12.02"]
[Round "2.30"]
[White "Nastase, Robert-Paul"]
[Black "Stan, Luciana-Gabriela"]
[Result "1-0"]
[ECO "B41"]
[WhiteElo "2229"]
[BlackElo "1823"]
[Annotator "TA"]
[PlyCount "61"]
[EventDate "2022.12.02"]
[EventType "rapid"]
[EventCountry "ROU"]
[SourceTitle "playchess.com"]
[Source "ChessBase"]
[SourceQuality "1"]
[TimeControl "600+5"]

{[%evp 13,61,15,54,41,43,41,51,43,41,43,49,46,47,33,46,35,35,28,23,2,24,15,34,28,14,-10,0,-17,-12,-6,92,94,162,156,154,163,212,201,585,347,338,337,348,339,1613,1620,1562,1532,29987,29988]} 1. e4 {[%emt 0:00:01]} c5 {[%emt 0:00:01]} 2. Nf3 {[%emt 0:00:02]} e6 {[%emt 0:00:00]} 3. d4 {[%emt 0:00:01]} cxd4 {[%emt 0:00:02]} 4. Nxd4 {[%emt 0:00:01]} a6 {[%emt 0:00:01]} 5. c4 {[%emt 0:00:02]} Nf6 {[%emt 0:00:03]} 6. Nc3 {[%emt 0:00:02]} Qc7 {[%emt 0:00:06]} 7. a3 {[%emt 0:00:05]} d6 {[%emt 0:00:02]} 8. Be3 {[%emt 0:00:02] B41: Sicilian: Kan Variation: 5 c4.} Nbd7 {[%emt 0:00:02]} 9. Rc1 {[%emt 0:00:02] was the old line (9.Be2).} b6 {[%emt 0:00:11]} 10. Be2 {[%emt 0:00:02] White is slightly better.} Bb7 {[%emt 0:00:01]} 11. f3 {[%emt 0:00:01]} Be7 {[%emt 0:00:01]} 12. O-O {[%emt 0:00:02]} Rc8 {[%emt 0:00:02]} 13. Qd2 {[%emt 0:00:28]} Qb8 {[%emt 0:00:09]} 14. Rfd1 {[%emt 0:00:22]} O-O {[%emt 0:00:07]} 15. Qe1 {[%emt 0:00:11]} Rfe8 {[%emt 0:00:03]} 16. Kh1 {[%emt 0:00:07] [#]} Bf8 $146 {[%emt 0:00:03]} ({Predecessor:} 16... Bd8 17. Qg1 Bc7 18. b4 Qa8 19. Nb3 d5 20. exd5 exd5 21. c5 bxc5 22. bxc5 Be5 {0-1 (63) Zimmer,R (2107)-Nalbant,T (1912) Mamaia 2017}) 17. Qg1 {[%emt 0:00:01]} (17. Qf2 {seems wilder.} d5 18. cxd5 exd5 19. exd5 Qe5 20. Nc2) 17... d5 {[%emt 0:00:50]} 18. cxd5 {[%emt 0:00:17]} (18. exd5 {feels hotter.} exd5 19. cxd5 b5 20. Nf5) 18... exd5 {[%emt 0:00:03]} 19. Nxd5 {[%emt 0:00:11]} (19. exd5 {with more complications.} b5 20. Nf5 g6 21. Ng3) 19... Nxd5 {[%emt 0:00:03]} 20. exd5 {[%emt 0:00:01]} Rxc1 {[%emt 0:00:06]} 21. Rxc1 {[%emt 0:00:08]} Bxd5 {[%emt 0:00:05]} (21... Nf6 $11) 22. Bxa6 $16 {[%emt 0:00:09]} Bd6 {[%emt 0:00:49]} (22... Qe5 $16) 23. Bb5 $18 {[%emt 0:00:32]} Qb7 {[%emt 0:02:20]} 24. Nf5 {[%emt 0:00:19]} Be5 {[%emt 0:00:17]} (24... Bf8 $142 25. Bf4 Rc8) 25. Bd4 {[%emt 0:00:29] [#] And now Bxe5 would win.} Bf4 {[%emt 0:03:48]} (25... Re6 26. Qe3 Bf6) 26. Re1 {[%emt 0:00:04]} Rxe1 {[%emt 0:00:12]} 27. Qxe1 {[%emt 0:00:01] Strongly threatening Qe8+.} Be6 {[%emt 0:00:03]} 28. Nxg7 {[%emt 0:00:26]} Nf8 {[%emt 0:00:27] [#]} (28... Qd5 29. Nxe6 fxe6) 29. Nh5 {[%emt 0:00:17]} Ng6 {[%emt 0:00:31]} 30. Nxf4 {[%emt 0:00:21]} Nxf4 {[%emt 0:00:02]} 31. Qe5 {[%emt 0:00:02] Weighted Error Value: White=0.25 (precise) /Black=0.64} 1-0

[Event "Romanian Rapid Open 2022"]
[Site "Sebes"]
[Date "2022.12.02"]
[Round "2.32"]
[White "Cazan, Mircea-Andrei"]
[Black "Stefan, Romulus-Cristian"]
[Result "0-1"]
[ECO "A04"]
[WhiteElo "1898"]
[BlackElo "2097"]
[Annotator "TA"]
[PlyCount "66"]
[EventDate "2022.12.02"]
[EventType "rapid"]
[EventCountry "ROU"]
[SourceTitle "playchess.com"]
[Source "ChessBase"]
[SourceQuality "1"]
[TimeControl "600+5"]

{[%evp 11,66,8,13,-13,-8,-19,23,19,26,-51,-13,-18,-21,-15,0,-6,7,-8,0,0,0,-50,-41,-93,-104,-129,-135,-132,-143,-139,-123,-136,-112,-108,-100,-214,-221,-219,-221,-213,-97,-68,-7,-12,-20,-196,-154,-213,-216,-262,-267,-447,-418,-529,-275,-482,-473]} 1. g3 {[%emt 0:00:10]} e5 {[%emt 0:00:05]} 2. Bg2 {[%emt 0:00:03]} Nc6 {[%emt 0:00:03]} 3. d3 {[%emt 0:00:04]} g6 {[%emt 0:00:12]} 4. Nf3 {[%emt 0:00:11]} Bg7 {[%emt 0:00:01]} 5. O-O {[%emt 0:00:05]} d6 {[%emt 0:00:01]} 6. e4 {[%emt 0:00:25]} Nge7 {[%emt 0:00:02]} 7. Be3 {[%emt 0:00:35] A04: Unusual lines after 1 Nf3 and King's Indian Attack.} O-O {[%emt 0:00:12]} 8. Nc3 {[%emt 0:00:37]} h6 {[%emt 0:00:04]} 9. Qd2 {[%emt 0:00:08] White has an edge.} Kh7 {[%emt 0:00:01]} 10. Nh4 {[%emt 0:00:46] [#]} (10. d4 $11) 10... Nd4 $146 {[%emt 0:00:38]} (10... g5 $5 {[%cal Rg5h4]} 11. Nf3 f5 12. exf5 Nxf5 $15) ({Predecessor:} 10... g5 11. Bxg5 hxg5 12. Qxg5 Ng6 13. Qh5+ Bh6 14. Nf5 Qg5 15. Qxh6+ Qxh6 16. Nxh6 Kxh6 {1-0 (70) Larino Nieto,D (2473)-Anton Guijarro,D (2674) chess24.com INT 2020}) 11. Bxd4 {[%emt 0:00:21]} exd4 {[%emt 0:00:02]} 12. Ne2 {[%emt 0:00:06]} a5 {[%emt 0:00:32]} 13. f4 {[%emt 0:00:06]} f5 {[%emt 0:00:01]} (13... c5 {looks sharper.} 14. f5 Bf6 15. c3 g5) 14. Rae1 {[%emt 0:00:48]} c6 {[%emt 0:00:19]} 15. Nf3 {[%emt 0:00:16]} Qb6 {[%emt 0:00:18]} 16. Kh1 {[%emt 0:00:25]} (16. e5 $11) 16... Qxb2 $15 {[%emt 0:01:13]} 17. Rb1 {[%emt 0:00:01]} ({Better is} 17. Nfxd4 $15 a4 18. Ra1) 17... Qxa2 $17 {[%emt 0:00:01]} 18. Ra1 {[%emt 0:00:32]} Qf7 {[%emt 0:00:05]} 19. Rxa5 {[%emt 0:00:18]} Rxa5 {[%emt 0:00:09]} 20. Qxa5 {[%emt 0:00:02]} c5 {[%emt 0:00:14]} 21. Qb6 {[%emt 0:00:49]} fxe4 {[%emt 0:00:30]} 22. dxe4 {[%emt 0:00:01]} Nc6 {[%emt 0:00:14]} 23. Qb1 {[%emt 0:01:19] Against Qa2} (23. f5 $17) 23... Qc4 $19 {[%emt 0:00:16]} 24. Rf2 {[%emt 0:00:48]} Nb4 {[%emt 0:00:36] Inhibits f5.} 25. Nc1 {[%emt 0:00:22]} Qf7 {[%emt 0:00:28]} (25... Be6 $19 {is more deadly. aiming for ...Qc3.} 26. Nd3 Qc3) 26. Nd3 $17 {[%emt 0:00:11]} Na2 {[%emt 0:00:39] Black is more active.} (26... Nc6 $15) 27. e5 $1 $11 {[%emt 0:00:15]} Nc3 $36 {[%emt 0:00:28][%mdl 2048] Black has the initiative.} (27... Qe6 {with more complications.} 28. exd6 Nc3 29. Qb6 Ne4) 28. Qe1 {[%emt 0:00:02] [#] This costs White the game.} (28. Qb6 $1 $11) 28... Qe7 {[%emt 0:00:16]} 29. exd6 {[%emt 0:00:12]} (29. Rf1 $17 {is a better defense.}) 29... Qxd6 $19 {[%emt 0:00:00]} 30. Nfe5 {[%emt 0:00:08]} b5 {[%emt 0:00:14]} 31. g4 $2 {[%emt 0:01:34]} (31. Nf3) 31... c4 {[%emt 0:00:16]} 32. Nb2 {[%emt 0:00:22]} Be6 {[%emt 0:00:16]} 33. Nd1 $2 {[%emt 0:00:26] [#]} (33. Nxg6 {was the only chance.} Kxg6 34. f5+ Bxf5 35. gxf5+ Rxf5 36. Qe8+ (36. Be4 $2 Nxe4 37. Qxe4 Qd5 $19) 36... Kf6 37. Rxf5+ Kxf5 38. Qh5+ Kf6 39. Qh4+ Kf7 40. Qh5+ Ke7 41. Qf3) 33... Nxd1 {[%emt 0:00:30] Weighted Error Value: White=0.52/Black=0.29 (precise)} 0-1

[Event "Romanian Rapid Open 2022"]
[Site "Sebes"]
[Date "2022.12.02"]
[Round "2.34"]
[White "Tatar, Marius Lucian"]
[Black "Zubcu, Vlad-George"]
[Result "0-1"]
[ECO "B28"]
[WhiteElo "1405"]
[BlackElo "2135"]
[Annotator "TA"]
[PlyCount "154"]
[EventDate "2022.12.02"]
[EventType "rapid"]
[EventCountry "ROU"]
[SourceTitle "playchess.com"]
[Source "ChessBase"]
[SourceQuality "1"]
[TimeControl "600+5"]

{[%evp 10,153,31,16,30,34,36,6,7,-52,-38,-38,-8,-21,-20,-32,-32,-27,-21,-15,-15,-20,12,25,31,28,28,4,60,52,55,69,96,70,79,70,64,0,-21,-19,0,-49,-68,-66,-62,-63,-74,-72,-69,-82,-66,-61,-70,-88,-27,-92,-92,-187,-203,-185,-23,-406,-404,-416,-415,-756,-755,-587,-573,-5265,-2317,-3259,-2050,-29970,-29970,-29972,-29973,-29973,-29974,-29973,-29974,-29973,-29974,-29976,-29977,-29977,-29978,-29978,-29979,-29979,-29980,-29980,-29981,-29982,-29983,-29983,-29984,-29984,-29985,-29985,-29986,-29987,-29987,-29988,-29988,-29988,-29989,-29989,-29990,-29990,-29991,-29991,-29992,-29991,-29992,-29992,-29993,-29993,-29994,-29994,-29995,-29995,-29996,-29996,-29995,-29996,-29996,-29996,-29996,-29997,-29996,-29996,-29996,-29996,-29997,-29998,-29996,-29996,-29997,-29997,-29996,-29996,-29997,-29998,-29999,-29999]} 1. e4 {[%emt 0:00:01]} c5 {[%emt 0:00:01]} 2. Nf3 {[%emt 0:00:01]} e6 {[%emt 0:00:01]} 3. c3 {[%emt 0:00:01]} d5 {[%emt 0:00:24]} 4. e5 {[%emt 0:00:02]} a6 {[%emt 0:00:28]} 5. d4 {[%emt 0:00:03]} Nc6 {[%emt 0:00:01]} 6. a3 {[%emt 0:10:27]} cxd4 {[%emt 0:00:14] B28: Sicilian: 2 Nf3 a6 (O'Kelly Variation).} 7. cxd4 {[%emt 0:00:00]} Nge7 {[%emt 0:00:02][%cal Bg8e7,Be7f5,Bf5e3][%mdl 32]} 8. b4 {[%emt 0:00:00]} Nf5 {[%emt 0:00:07] The position is equal.} 9. Be3 {[%emt 0:00:00]} ({White should play} 9. Be2 $11) 9... Nxe3 $15 {[%emt 0:00:54]} 10. fxe3 {[%emt 0:00:00] [#]} g6 $146 {[%emt 0:00:04]} ({Predecessor:} 10... Be7 11. Bd3 O-O 12. O-O f5 13. exf6 Bxf6 14. Nc3 e5 15. Nxe5 Nxe5 16. dxe5 Bxe5 17. Qh5 Bf6 18. Bxh7+ {1-0 (18) Rosa Ramirez,V (1911)-Martinez Miura,E (1733) Madrid 2013}) 11. Bd3 {[%emt 0:00:00]} Bh6 {[%emt 0:00:15]} 12. Qd2 {[%emt 0:00:00]} O-O {[%emt 0:00:06]} 13. O-O {[%emt 0:00:00]} Bd7 {[%emt 0:00:10]} 14. Nc3 {[%emt 0:00:00]} Rc8 {[%emt 0:00:02]} 15. Rac1 {[%emt 0:00:00]} Qb6 {[%emt 0:00:37][%cal Oc6d4]} 16. Na4 {[%emt 0:00:00]} Qa7 {[%emt 0:00:05][%cal Oc6d4] Hoping for ...Nxd4!} 17. Nc5 {[%emt 0:00:00]} Be8 {[%emt 0:00:01]} 18. Qe2 {[%emt 0:00:00]} a5 {[%emt 0:00:31]} (18... Nb8 $11) 19. b5 $14 {[%emt 0:00:00][%cal Bb4b5,Bb5b6][%mdl 32]} Ne7 {[%emt 0:00:01]} 20. b6 {[%emt 0:00:00]} Qb8 {[%emt 0:00:40]} 21. Rc2 {[%emt 0:00:00]} Rc6 {[%emt 0:00:46]} 22. Rb1 {[%emt 0:00:00]} Nc8 {[%emt 0:00:07]} 23. Bb5 {[%emt 0:00:00]} (23. Rcb2 $14) 23... Rxb6 $11 {[%emt 0:00:12]} 24. a4 {[%emt 0:00:00]} Na7 {[%emt 0:00:08]} 25. Rbb2 {[%emt 0:00:00]} ({Don't blunder} 25. Nd7 $2 Bxd7 26. h4 Rc8 $19) (25. g4 $11 {should be considered.}) 25... Bxb5 $15 {[%emt 0:00:17]} 26. axb5 {[%emt 0:00:00]} Qe8 {[%emt 0:00:03][%cal Rb6b5]} 27. e4 {[%emt 0:00:00]} Rxb5 {[%emt 0:00:13]} ({Much worse is} 27... Nxb5 28. exd5 exd5 29. Qd3 $11) 28. exd5 {[%emt 0:00:00]} exd5 {[%emt 0:00:04] ...b6 is the strong threat.} 29. Nxb7 {[%emt 0:00:00] Threatens to win with Nd6.} Rxb2 {[%emt 0:00:20]} 30. Rxb2 {[%emt 0:00:00]} Nc6 {[%emt 0:00:41][%cal Ba7c6,Bc6e7,Be7c8][%mdl 32]} 31. Nd6 {[%emt 0:00:00] [#] Prevents a4.} Qe6 {[%emt 0:00:47]} (31... Qd7 $1 $17 32. Rb6 Nb4) 32. Rb6 {[%emt 0:00:00] [#]} (32. h3 $1 $11) 32... Ne7 $1 $17 {[%emt 0:00:38]} 33. Qb2 {[%emt 0:00:00]} (33. Ra6 $17 {was necessary.}) 33... Nc8 $19 {[%emt 0:01:09]} 34. Rc6 {[%emt 0:00:00] Black must now prevent Nxc8.} Qd7 {[%emt 0:00:16]} ({Black should try} 34... Nxd6 $19 35. exd6 Kg7) 35. Nxc8 $2 {[%emt 0:00:00][%mdl 8192] White does not recover from this.} Rxc8 {[%emt 0:00:02]} (35... Qxc6 $2 36. Ne7+ Kh8 37. Nxc6 $18) ({Inferior is} 35... Be3+ 36. Kf1 Rxc8 37. Rxc8+ Qxc8 38. Ke1 $17) 36. Rxc8+ {[%emt 0:00:00]} Qxc8 $11 {[%emt 0:00:01][%mdl 4096] Endgame KQB-KQN} 37. h3 {[%emt 0:00:00]} (37. Kf2 $142 a4 38. Qa2) 37... Qc1+ $19 {[%emt 0:00:02]} 38. Qxc1 {[%emt 0:00:00]} Bxc1 {[%emt 0:00:01] KB-KN} 39. Kf2 {[%emt 0:00:00]} a4 {[%emt 0:00:03]} 40. Ne1 {[%emt 0:00:00]} a3 {[%emt 0:00:03] ( -> ...a2)} 41. Nc2 {[%emt 0:00:01]} a2 {[%emt 0:00:01] Black mates.} 42. Ke2 {[%emt 0:00:08]} Bb2 {[%emt 0:00:02]} 43. Kd3 {[%emt 0:00:10]} a1=Q {[%emt 0:00:02]} 44. Nxa1 {[%emt 0:00:02]} Bxa1 {[%emt 0:00:01] KB-KP} 45. Ke3 {[%emt 0:00:01]} Kg7 {[%emt 0:00:02]} 46. g4 {[%emt 0:00:01]} h5 {[%emt 0:00:11][%cal Bh7h5,Bh5h4][%mdl 32]} 47. g5 {[%emt 0:00:05]} h4 {[%emt 0:00:02]} 48. Kd3 {[%emt 0:00:08]} Bb2 {[%emt 0:00:02]} 49. Ke3 {[%emt 0:00:05]} Bc1+ {[%emt 0:00:01]} 50. Kf3 {[%emt 0:00:05]} Bxg5 {[%emt 0:00:02] KB-K3P} 51. Kg4 {[%emt 0:00:02]} Be3 {[%emt 0:00:01]} 52. Kxh4 {[%emt 0:00:01]} Bxd4 {[%emt 0:00:01]} 53. e6 {[%emt 0:00:03]} fxe6 {[%emt 0:00:01] KB-KP} 54. Kg5 {[%emt 0:00:01]} e5 {[%emt 0:00:02]} 55. h4 {[%emt 0:00:03]} Be3+ {[%emt 0:00:02]} 56. Kg4 {[%emt 0:00:01]} Bh6 {[%emt 0:00:01]} 57. h5 {[%emt 0:00:05]} gxh5+ {[%emt 0:00:01]} 58. Kxh5 {[%emt 0:00:01]} d4 {[%emt 0:00:01][%cal Bd5d4,Bd4d3][%mdl 32]} 59. Kg4 {[%emt 0:00:01]} e4 {[%emt 0:00:01]} 60. Kg3 {[%emt 0:00:01]} d3 {[%emt 0:00:02]} 61. Kf2 {[%emt 0:00:01]} Kf6 {[%emt 0:00:01]} 62. Ke1 {[%emt 0:00:02]} e3 {[%emt 0:00:01]} 63. Kd1 {[%emt 0:00:00]} Ke5 {[%emt 0:00:01]} 64. Ke1 {[%emt 0:00:01]} Bg5 {[%emt 0:00:01]} 65. Kd1 {[%emt 0:00:02]} e2+ {[%emt 0:00:01]} 66. Ke1 {[%emt 0:00:01]} Bh4+ {[%emt 0:00:01]} 67. Kd2 {[%emt 0:00:01]} e1=Q+ {[%emt 0:00:03]} 68. Kxd3 {[%emt 0:00:01]} Qe4+ {[%emt 0:00:01]} 69. Kd2 {[%emt 0:00:02]} Bg5+ {[%emt 0:00:01]} 70. Kc3 {[%emt 0:00:01]} Qd4+ {[%emt 0:00:02]} 71. Kc2 {[%emt 0:00:01]} Qc4+ {[%emt 0:00:01]} 72. Kd1 {[%emt 0:00:01]} Qc1+ {[%emt 0:00:10]} 73. Ke2 {[%emt 0:00:01]} Qd2+ {[%emt 0:00:01]} 74. Kf3 {[%emt 0:00:02]} Qe3+ {[%emt 0:00:02]} 75. Kg2 {[%emt 0:00:02]} Bf4 {[%emt 0:00:02]} 76. Kh1 {[%emt 0:00:02]} Qh3+ {[%emt 0:00:03]} 77. Kg1 {[%emt 0:00:01]} Be3# {[%emt 0:00:01] Weighted Error Value: White=0.62/Black=0.15 (very precise)} 0-1

[Event "Romanian Rapid Open 2022"]
[Site "Sebes"]
[Date "2022.12.02"]
[Round "2.35"]
[White "Dragut, Stefan-Cristian"]
[Black "Cosma, Ioan"]
[Result "0-1"]
[ECO "B23"]
[WhiteElo "1217"]
[BlackElo "2368"]
[Annotator "TA"]
[PlyCount "60"]
[EventDate "2022.12.02"]
[EventType "rapid"]
[EventCountry "ROU"]
[SourceTitle "playchess.com"]
[Source "ChessBase"]
[SourceQuality "1"]
[TimeControl "600+5"]

{[%evp 14,60,10,-1,-1,-11,47,29,36,25,38,35,30,0,0,0,12,0,16,13,20,-1,15,0,0,-27,-8,-327,-316,-477,-475,-677,-670,-720,-714,-800,-707,-1046,-1030,-964,-891,-824,-712,-1153,-1125,-6475,-804,-779,-771]} 1. e4 {[%emt 0:00:01]} c5 {[%emt 0:00:01]} 2. Nc3 {[%emt 0:00:01]} Nc6 {[%emt 0:00:01]} 3. f4 {[%emt 0:10:18]} g6 {[%emt 0:00:02]} 4. Nf3 {[%emt 0:00:00]} Bg7 {[%emt 0:00:01]} 5. Bb5 {[%emt 0:00:00]} Nd4 {[%emt 0:00:03]} 6. O-O {[%emt 0:00:00]} Nxb5 {[%emt 0:00:12]} 7. Nxb5 {[%emt 0:00:00]} d5 {[%emt 0:00:10] 7...d6 is the fancy move.} 8. d3 {[%emt 0:00:00]} a6 {[%emt 0:00:18] B23: Closed Sicilian: Lines without g3.} 9. Nc3 {[%emt 0:00:00]} Nf6 {[%emt 0:00:23]} ({Better is} 9... Bxc3 $11 10. bxc3 dxe4 11. dxe4 Qxd1 12. Rxd1 Nf6) 10. Qe1 {[%emt 0:00:00]} O-O {[%emt 0:00:26] White has an edge.} 11. e5 {[%emt 0:00:00] [#]} Ng4 $146 {[%emt 0:00:23]} ({Predecessor:} 11... Ne8 12. Qh4 f6 13. Bd2 Be6 14. Rae1 Qd7 15. Re2 Nc7 16. h3 b5 17. g4 a5 {0-1 (42) Groleau,G (1975)-Arsenault,M (1980) Gatineau 2006}) 12. h3 {[%emt 0:00:00]} Nh6 {[%emt 0:00:01][%cal Bg4h6,Bh6f5,Bf5e3][%mdl 32]} 13. d4 {[%emt 0:00:00]} cxd4 $1 {[%emt 0:00:16]} 14. Nxd4 {[%emt 0:00:00]} Nf5 {[%emt 0:00:02]} 15. Be3 {[%emt 0:00:00]} Nxe3 {[%emt 0:00:25]} 16. Qxe3 {[%emt 0:00:00]} e6 {[%emt 0:00:03][%cal Be7e6,Be6f5][%mdl 32]} 17. g4 {[%emt 0:00:00]} Re8 {[%emt 0:00:10]} 18. Rae1 {[%emt 0:00:00]} Bd7 {[%emt 0:00:06]} 19. Qg3 {[%emt 0:00:00]} Qc7 {[%emt 0:00:22]} ({Much weaker is} 19... Qb6 $6 20. Qe3 $15) 20. f5 $2 {[%emt 0:00:00][%mdl 8192] [#] White does not recover from this.} (20. Qe3 $11) 20... exf5 $19 {[%emt 0:00:09][%cal Rg7e5]} 21. Nxd5 {[%emt 0:00:00]} (21. Rd1 $142) 21... Qc5 {[%emt 0:00:06] Black is clearly winning.} 22. c3 {[%emt 0:00:00]} (22. Rd1 $142 Qxd5 23. Nxf5 Qc5+ 24. Qf2 Qxf2+ 25. Rxf2 Bxf5 26. gxf5) 22... Qxd5 {[%emt 0:00:05]} 23. gxf5 {[%emt 0:00:00]} Bxe5 {[%emt 0:00:07]} 24. Qg4 {[%emt 0:00:00]} Bxd4+ {[%emt 0:00:11]} 25. cxd4 {[%emt 0:00:00]} Bxf5 {[%emt 0:00:16]} 26. Qh4 {[%emt 0:00:00]} Re4 {[%emt 0:00:35]} 27. Rxe4 {[%emt 0:00:25]} Qxe4 {[%emt 0:00:03]} 28. Qf2 {[%emt 0:00:40]} Re8 {[%emt 0:00:03]} ({Weaker is} 28... Bxh3 29. Qxf7+ Kh8 30. Qf6+ Kg8 31. Qf7+ Kh8 32. Qf6+ Kg8 33. Qf7+ $11) 29. Qd2 {[%emt 0:00:31]} Qe3+ {[%emt 0:00:10]} 30. Qxe3 {[%emt 0:00:03]} Rxe3 {[%emt 0:00:01] Weighted Error Value: White=1.27/Black=0.40} 0-1